[Event "AUT 2nd BL Ost 2021-22"]
[Site "Austria"]
[Date "2022.04.03"]
[Round "10.17"]
[White "Prinzjakowitsch, Bernhard"]
[Black "Pichler, Andreas"]
[Result "1-0"]
[ECO "C90"]
[WhiteElo "2091"]
[BlackElo "2070"]
[Annotator "NA"]
[PlyCount "115"]
[EventDate "2022.04.01"]
[EventType "team-tourn"]
[EventCountry "AUT"]
[SourceTitle "playchess.com"]
[Source "ChessBase"]
[SourceQuality "1"]
[TimeControl "40/5400+30:1800+30"]

1. e4 {[%emt 0:00:02]} e5 {[%emt 0:00:15]} 2. Nf3 {[%emt 0:00:06]} Nc6 {[%emt 0:00:11]} 3. Bb5 {[%emt 0:00:14]} a6 {[%emt 0:00:29]} 4. Ba4 {[%emt 0:00:24]} Nf6 {[%emt 0:00:26]} 5. O-O {[%emt 0:00:37]} Be7 {[%emt 0:00:38]} 6. Re1 {[%emt 0:00:17]} b5 {[%emt 0:00:22]} 7. Bb3 {[%emt 0:00:05]} d6 {[%emt 0:00:29]} 8. c3 {[%emt 0:00:11]} O-O {[%emt 0:00:34]} 9. a4 {[%emt 0:01:44]} Bb7 {[%emt 0:04:07]} 10. d4 {[%emt 0:01:07]} Re8 {[%emt 0:09:06]} 11. Nbd2 {[%emt 0:05:49]} Bf8 {[%emt 0:01:17]} 12. d5 {[%emt 0:09:14]} Nb8 {[%emt 0:04:07]} 13. Nf1 {[%emt 0:00:18]} c6 {[%emt 0:03:18]} 14. dxc6 {[%emt 0:04:24]} Bxc6 {[%emt 0:02:05]} 15. Ng5 {[%emt 0:00:53]} Re7 {[%emt 0:04:58]} 16. axb5 {[%emt 0:05:33]} Bxb5 {[%emt 0:07:52]} 17. Ng3 {[%emt 0:13:35]} g6 {[%emt 0:03:12]} 18. f4 {[%emt 0:02:50]} Qc7 {[%emt 0:01:42]} 19. f5 {[%emt 0:00:36]} Bg7 {[%emt 0:08:29]} 20. fxg6 {[%emt 0:04:25]} hxg6 {[%emt 0:00:10]} 21. Nf1 {[%emt 0:03:30]} Bc6 {[%emt 0:06:00]} 22. Ne3 {[%emt 0:12:52]} Nbd7 {[%emt 0:04:42]} 23. Ba4 {[%emt 0:05:46]} Nc5 {[%emt 0:04:29]} 24. Bxc6 {[%emt 0:02:23]} Qxc6 {[%emt 0:00:10]} 25. Nd5 {[%emt 0:00:02]} Nxd5 {[%emt 0:11:54]} 26. exd5 {[%emt 0:00:27]} Qb5 {[%emt 0:01:59]} 27. Qf3 {[%emt 0:02:00]} f6 {[%emt 0:10:42]} 28. Ne4 {[%emt 0:00:38]} Nxe4 {[%emt 0:00:32]} 29. Qxe4 {[%emt 0:00:09]} f5 {[%emt 0:00:20]} 30. Qh4 {[%emt 0:07:10]} Kf7 {[%emt 0:00:31]} 31. Rd1 {[%emt 0:02:58]} Rc8 {[%emt 0:02:35]} 32. Qa4 {[%emt 0:03:06]} Qe2 {[%emt 0:02:04]} 33. Bd2 {[%emt 0:00:08]} Ra7 {[%emt 0:00:50]} 34. Qc2 {[%emt 0:01:11]} e4 {[%emt 0:00:41]} 35. Qc1 {[%emt 0:00:39]} Be5 {[%emt 0:00:51]} 36. Be3 {[%emt 0:00:12]} Raa8 {[%emt 0:00:55]} 37. Qd2 {[%emt 0:00:43]} Qb5 {[%emt 0:02:13]} 38. Qf2 {[%emt 0:03:17]} Rh8 {[%emt 0:00:45]} 39. g3 {[%emt 0:00:19]} Rab8 {[%emt 0:00:51]} 40. Rd2 {[%emt 0:00:17]} Ke7 {[%emt 0:01:32]} 41. Bg5+ {[%emt 0:31:14]} Ke8 {[%emt 0:09:04]} 42. Qa7 {[%emt 0:00:00]} Rb7 {[%emt 0:01:37]} 43. Qxa6 {[%emt 0:00:00]} Qc5+ {[%emt 0:04:08]} 44. Kg2 {[%emt 0:00:00]} Qb5 {[%emt 0:04:40]} 45. Qxb5+ {[%emt 0:00:00]} Rxb5 {[%emt 0:00:02]} 46. Ra7 {[%emt 0:00:00]} Rb8 {[%emt 0:03:21]} 47. b4 {[%emt 0:00:00]} Bxc3 {[%emt 0:02:59]} 48. Rc2 {[%emt 0:00:00]} Bd4 {[%emt 0:01:09]} 49. Re7+ {[%emt 0:00:00]} Kf8 {[%emt 0:00:09]} 50. Rcc7 {[%emt 0:00:00]} Ra8 {[%emt 0:00:28]} 51. Rf7+ {[%emt 0:00:00]} Kg8 {[%emt 0:00:36]} 52. h4 {[%emt 0:00:00]} Ra2+ {[%emt 0:03:58]} 53. Kf1 {[%emt 0:00:00]} Ra1+ {[%emt 0:00:26]} 54. Ke2 {[%emt 0:00:00]} Ra2+ {[%emt 0:00:14]} 55. Kd1 {[%emt 0:00:00]} Rb2 {[%emt 0:01:55]} 56. Rfd7 {[%emt 0:00:00]} Rb1+ {[%emt 0:01:14]} 57. Kc2 {[%emt 0:00:00]} Rb2+ {[%emt 0:00:46]} 58. Kc1 {[%emt 0:00:00]} 1-0

[Event "AUT 2nd BL Ost 2021-22"]
[Site "Austria"]
[Date "2022.04.03"]
[Round "10.18"]
[White "Wu, Min"]
[Black "Horvath, Maria"]
[Result "1-0"]
[ECO "C45"]
[WhiteElo "1945"]
[BlackElo "1997"]
[Annotator "NA"]
[PlyCount "75"]
[EventDate "2022.04.01"]
[EventType "team-tourn"]
[EventCountry "AUT"]
[SourceTitle "playchess.com"]
[Source "ChessBase"]
[SourceQuality "1"]
[TimeControl "40/5400+30:1800+30"]

1. e4 {[%emt 0:00:03]} e6 {[%emt 0:00:23]} 2. d3 {[%emt 0:00:49]} Nc6 {[%emt 0:02:00]} 3. Nf3 {[%emt 0:01:32]} e5 {[%emt 0:01:03]} 4. d4 {[%emt 0:04:16]} exd4 {[%emt 0:01:06]} 5. Nxd4 {[%emt 0:00:05]} Bc5 {[%emt 0:06:08]} 6. Nb3 {[%emt 0:00:13]} Bb6 {[%emt 0:00:21]} 7. Nc3 {[%emt 0:01:33]} a5 {[%emt 0:08:09]} 8. Nd5 {[%emt 0:10:11]} Ba7 {[%emt 0:00:28]} 9. Qg4 {[%emt 0:01:52]} g6 {[%emt 0:03:49]} 10. Qg3 {[%emt 0:24:03]} d6 {[%emt 0:00:20]} 11. Qc3 {[%emt 0:01:31]} f6 {[%emt 0:06:37]} 12. Be3 {[%emt 0:03:37]} Bxe3 {[%emt 0:03:12]} 13. Qxe3 {[%emt 0:04:50]} a4 {[%emt 0:11:17]} 14. Nd4 {[%emt 0:14:56]} Nxd4 {[%emt 0:00:10]} 15. Qxd4 {[%emt 0:00:06]} c6 {[%emt 0:11:37]} 16. Ne3 {[%emt 0:07:23]} b5 {[%emt 0:14:10]} 17. Rd1 {[%emt 0:02:17]} Ke7 {[%emt 0:03:17]} 18. Be2 {[%emt 0:03:35]} Nh6 {[%emt 0:02:09]} 19. O-O {[%emt 0:00:45]} Nf7 {[%emt 0:00:25]} 20. c4 {[%emt 0:03:11]} bxc4 {[%emt 0:04:36]} 21. Bxc4 {[%emt 0:01:38]} Ba6 {[%emt 0:02:18]} 22. f4 {[%emt 0:00:55]} Qc7 {[%emt 0:03:01]} 23. e5 {[%emt 0:02:10]} fxe5 {[%emt 0:07:15]} 24. fxe5 {[%emt 0:00:08]} Nxe5 {[%emt 0:00:45]} 25. Qh4+ {[%emt 0:02:01]} Kd7 {[%emt 0:02:02]} 26. Bxa6 {[%emt 0:06:08]} Rxa6 {[%emt 0:00:20]} 27. Nc4 {[%emt 0:00:33]} d5 {[%emt 0:02:14]} 28. Qh3+ {[%emt 0:03:03]} Kd8 {[%emt 0:00:44]} 29. Qh4+ {[%emt 0:00:20]} Kc8 {[%emt 0:00:58]} 30. Nxe5 {[%emt 0:00:24]} Qxe5 {[%emt 0:00:13]} 31. Rde1 {[%emt 0:00:27]} Qd6 {[%emt 0:01:38]} 32. Rf6 {[%emt 0:00:38]} Qc5+ {[%emt 0:01:06]} 33. Kh1 {[%emt 0:00:04]} Rb6 {[%emt 0:00:53]} 34. Qg3 {[%emt 0:00:16]} Rxb2 {[%emt 0:01:00]} 35. Qg4+ {[%emt 0:00:36]} Kd8 {[%emt 0:01:04]} 36. Qg5 {[%emt 0:00:49]} Kc7 {[%emt 0:00:20]} 37. Qe5+ {[%emt 0:00:13]} Kc8 {[%emt 0:00:00]} 38. Qg5 1-0

[Event "AUT 2nd BL Ost 2021-22"]
[Site "Austria"]
[Date "2022.04.03"]
[Round "10.19"]
[White "Pernerstorfer, Max"]
[Black "Polak, Tomas"]
[Result "1-0"]
[ECO "B62"]
[WhiteElo "2063"]
[BlackElo "2520"]
[Annotator "ChessBase"]
[PlyCount "101"]
[EventDate "2022.04.01"]
[EventType "team-tourn"]
[EventCountry "AUT"]
[SourceTitle "playchess.com"]
[Source "ChessBase"]
[SourceQuality "1"]
[TimeControl "40/5400+30:1800+30"]

1. e4 {[%emt 0:00:03]} c5 {[%emt 0:00:20]} 2. Nf3 {[%emt 0:00:23]} Nc6 {[%emt 0:00:11]} 3. d4 {[%emt 0:00:14]} cxd4 {[%emt 0:00:06]} 4. Nxd4 {[%emt 0:00:06]} Nf6 {[%emt 0:00:12]} 5. Nc3 {[%emt 0:00:19]} d6 {[%emt 0:00:09]} 6. Bg5 {[%emt 0:02:22]} Bd7 {[%emt 0:00:18]} 7. Bb5 {[%emt 0:02:57]} e6 {[%emt 0:03:21]} 8. f4 {[%emt 0:03:38]} Be7 {[%emt 0:03:42]} 9. Qd3 {[%emt 0:13:18]} h6 {[%emt 0:02:38]} 10. Bh4 {[%emt 0:14:13]} g5 {[%emt 0:01:49]} 11. fxg5 {[%emt 0:01:20]} Ng4 {[%emt 0:00:26]} 12. Bxc6 {[%emt 0:06:05]} bxc6 {[%emt 0:01:57]} 13. Nf3 {[%emt 0:00:08]} hxg5 {[%emt 0:02:27]} 14. Bg3 {[%emt 0:00:17]} e5 {[%emt 0:06:38]} 15. O-O-O {[%emt 0:02:38]} Qc7 {[%emt 0:02:47]} 16. h3 {[%emt 0:00:52]} Nf6 {[%emt 0:02:36]} 17. Nxg5 {[%emt 0:10:42]} Nh5 {[%emt 0:02:03]} 18. h4 {[%emt 0:00:14]} f6 {[%emt 0:01:05]} 19. Nh3 {[%emt 0:00:44]} Rb8 {[%emt 0:10:19]} 20. Qf3 {[%emt 0:07:08]} Qb7 {[%emt 0:18:09]} 21. b3 {[%emt 0:00:06]} Qb4 {[%emt 0:00:26]} 22. Be1 {[%emt 0:00:27]} d5 {[%emt 0:06:56]} 23. g4 {[%emt 0:06:14]} Ng7 {[%emt 0:01:02]} 24. Kb1 {[%emt 0:01:55]} d4 {[%emt 0:04:12]} 25. Nd5 {[%emt 0:02:22]} Qd6 {[%emt 0:00:23]} 26. Nxe7 {[%emt 0:00:38]} Qxe7 {[%emt 0:01:45]} 27. g5 {[%emt 0:05:10]} f5 {[%emt 0:02:20]} 28. Nf2 {[%emt 0:06:45]} O-O {[%emt 0:03:40]} 29. Qd3 {[%emt 0:05:28]} Nh5 {[%emt 0:04:28]} 30. Bd2 {[%emt 0:00:57]} f4 {[%emt 0:05:40]} 31. c3 {[%emt 0:01:59]} c5 {[%emt 0:02:36]} 32. cxd4 {[%emt 0:00:55]} cxd4 {[%emt 0:00:15]} 33. Qa6 {[%emt 0:00:52]} Be6 {[%emt 0:05:35]} 34. Bc1 {[%emt 0:01:02]} Rb6 {[%emt 0:00:47]} 35. Qa5 {[%emt 0:01:28]} Qb7 {[%emt 0:02:13]} 36. Bb2 {[%emt 0:01:20]} Rb5 {[%emt 0:00:58]} 37. Qa4 {[%emt 0:01:08]} Rb8 {[%emt 0:02:02]} 38. Rd2 {[%emt 0:01:21]} Rb4 {[%emt 0:01:43]} 39. Qa5 {[%emt 0:00:31]} Rb5 {[%emt 0:00:10]} 40. Qa4 {[%emt 0:00:07]} Kh7 {[%emt 0:01:23]} 41. Rc1 {[%emt 0:03:55]} Rc8 {[%emt 0:14:33]} 42. Rxc8 {[%emt 0:01:10]} Bxc8 {[%emt 0:00:05]} 43. Qc4 {[%emt 0:02:35]} Ng7 {[%emt 0:03:15]} 44. Rc2 {[%emt 0:02:42]} Be6 {[%emt 0:01:03]} 45. Qc7 {[%emt 0:00:30]} Qa6 {[%emt 0:08:46]} 46. h5 {[%emt 0:06:00]} Rb7 {[%emt 0:00:28]} 47. Qxe5 {[%emt 0:02:47]} Qf1+ {[%emt 0:00:29]} 48. Bc1 {[%emt 0:00:27]} d3 {[%emt 0:02:50]} 49. g6+ {[%emt 0:00:26]} Kg8 {[%emt 0:02:04]} 50. Rb2 {[%emt 0:07:04]} Re7 {[%emt 0:01:07]} 51. h6 {[%emt 0:00:44]} 1-0

[Event "AUT 2nd BL Ost 2021-22"]
[Site "Austria"]
[Date "2022.04.03"]
[Round "10.20"]
[White "Belke, Frank"]
[Black "Scheffknecht, Philipp"]
[Result "1-0"]
[ECO "E70"]
[WhiteElo "2224"]
[BlackElo "2060"]
[Annotator "ChessBase"]
[PlyCount "203"]
[EventDate "2022.04.01"]
[EventType "team-tourn"]
[EventCountry "AUT"]
[SourceTitle "playchess.com"]
[Source "ChessBase"]
[SourceQuality "1"]
[TimeControl "40/5400+30:1800+30"]

1. d4 {[%emt 0:00:03]} Nf6 {[%emt 0:04:37]} 2. c4 {[%emt 0:00:05]} g6 {[%emt 0:00:28]} 3. Nc3 {[%emt 0:00:02]} Bg7 {[%emt 0:00:08]} 4. e4 {[%emt 0:00:04]} d6 {[%emt 0:00:08]} 5. Nge2 {[%emt 0:00:03]} O-O {[%emt 0:00:17]} 6. Ng3 {[%emt 0:00:05]} h5 {[%emt 0:00:31]} 7. Bg5 {[%emt 0:00:17]} Nh7 {[%emt 0:00:34]} 8. Be3 {[%emt 0:00:09]} e5 {[%emt 0:02:29]} 9. d5 {[%emt 0:00:45]} h4 {[%emt 0:08:19]} 10. Nge2 {[%emt 0:00:04]} f5 {[%emt 0:00:59]} 11. f3 {[%emt 0:00:38]} h3 {[%emt 0:05:08]} 12. Qd2 {[%emt 0:03:52]} f4 {[%emt 0:16:56]} 13. Bf2 {[%emt 0:00:06]} Bf6 {[%emt 0:15:43]} 14. O-O-O {[%emt 0:04:43]} Ng5 {[%emt 0:06:55]} 15. Ng1 {[%emt 0:01:04]} Kg7 {[%emt 0:04:47]} 16. gxh3 {[%emt 0:03:45]} Rh8 {[%emt 0:02:52]} 17. h4 {[%emt 0:00:33]} Nf7 {[%emt 0:00:18]} 18. Bh3 {[%emt 0:00:41]} Bxh4 {[%emt 0:01:10]} 19. Bxc8 {[%emt 0:01:16]} Qxc8 {[%emt 0:00:52]} 20. Bxh4 {[%emt 0:00:33]} Rxh4 {[%emt 0:00:14]} 21. Qf2 {[%emt 0:00:02]} Qh8 {[%emt 0:08:32]} 22. Nb5 {[%emt 0:04:30]} Na6 {[%emt 0:00:38]} 23. Ne2 {[%emt 0:00:12]} Qh5 {[%emt 0:03:41]} 24. Qg2 {[%emt 0:08:57]} Rh8 {[%emt 0:01:02]} 25. Nxa7 {[%emt 0:06:50]} Rxh2 {[%emt 0:01:59]} 26. Rxh2 {[%emt 0:00:04]} Qxh2 {[%emt 0:00:09]} 27. Rg1 {[%emt 0:00:28]} Qxg2 {[%emt 0:00:35]} 28. Rxg2 {[%emt 0:00:01]} Nb4 {[%emt 0:03:56]} 29. Kd2 {[%emt 0:01:30]} Nxa2 {[%emt 0:01:45]} 30. Nb5 {[%emt 0:00:22]} c6 {[%emt 0:01:49]} 31. Nc7 {[%emt 0:01:23]} Kf6 {[%emt 0:01:52]} 32. Kc2 {[%emt 0:01:38]} Nb4+ {[%emt 0:01:51]} 33. Kc3 {[%emt 0:00:06]} c5 {[%emt 0:00:57]} 34. Kd2 {[%emt 0:03:39]} Ng5 {[%emt 0:01:20]} 35. Ng1 {[%emt 0:00:07]} Rc8 {[%emt 0:01:57]} 36. Nb5 {[%emt 0:00:21]} Nf7 {[%emt 0:00:33]} 37. Rh2 {[%emt 0:00:39]} Kg7 {[%emt 0:00:58]} 38. Ne2 {[%emt 0:01:33]} Rh8 {[%emt 0:01:11]} 39. Rxh8 {[%emt 0:00:06]} Kxh8 {[%emt 0:00:05]} 40. Nec3 {[%emt 0:01:31]} Kg7 {[%emt 0:01:12]} 41. Nc7 {[%emt 0:33:17]} Kf6 {[%emt 0:09:07]} 42. N3b5 {[%emt 0:00:00]} Ke7 {[%emt 0:03:20]} 43. Ne6 {[%emt 0:00:00]} Na6 {[%emt 0:01:54]} 44. Ke2 {[%emt 0:00:00]} Nb8 {[%emt 0:01:31]} 45. Kf2 {[%emt 0:00:00]} Nd7 {[%emt 0:00:50]} 46. Kg2 {[%emt 0:00:00]} Nf8 {[%emt 0:01:25]} 47. Nec7 {[%emt 0:00:00]} Ng5 {[%emt 0:04:35]} 48. Kf2 {[%emt 0:00:00]} Nd7 {[%emt 0:01:13]} 49. Kg2 {[%emt 0:00:00]} Nb6 {[%emt 0:02:30]} 50. b3 {[%emt 0:00:00]} Nd7 {[%emt 0:00:37]} 51. Na8 {[%emt 0:00:00]} Nf6 {[%emt 0:03:03]} 52. Nb6 {[%emt 0:00:00]} Ne8 {[%emt 0:03:42]} 53. Nc8+ {[%emt 0:00:00]} Kd7 {[%emt 0:00:13]} 54. Nb6+ {[%emt 0:00:00]} Kd8 {[%emt 0:00:12]} 55. Kf2 {[%emt 0:00:00]} Nf7 {[%emt 0:01:18]} 56. Na8 {[%emt 0:00:00]} Ke7 {[%emt 0:01:16]} 57. Nb6 {[%emt 0:00:00]} Kf6 {[%emt 0:01:04]} 58. Nc8 {[%emt 0:00:00]} Kg5 {[%emt 0:00:49]} 59. Ne7 {[%emt 0:00:00]} Kh5 {[%emt 0:00:54]} 60. Kg2 {[%emt 0:00:00]} g5 {[%emt 0:00:53]} 61. Kh3 {[%emt 0:00:00]} Nf6 {[%emt 0:00:32]} 62. Nf5 {[%emt 0:00:00]} Ne8 {[%emt 0:00:26]} 63. Ne7 {[%emt 0:00:00]} Nh6 {[%emt 0:00:33]} 64. Nc8 {[%emt 0:00:00]} Nf7 {[%emt 0:00:32]} 65. Ne7 {[%emt 0:00:00]} g4+ {[%emt 0:00:32]} 66. fxg4+ {[%emt 0:00:00]} Kg5 {[%emt 0:00:10]} 67. Nf5 {[%emt 0:00:00]} b6 {[%emt 0:00:43]} 68. Nc3 {[%emt 0:00:00]} Nf6 {[%emt 0:00:29]} 69. Ng7 {[%emt 0:00:00]} Kg6 {[%emt 0:00:36]} 70. Nf5 {[%emt 0:05:20]} Ng5+ {[%emt 0:00:15]} 71. Kg2 {[%emt 0:00:07]} Ngxe4 {[%emt 0:00:32]} 72. Nxe4 {[%emt 0:02:16]} Nxe4 {[%emt 0:00:08]} 73. Kf3 {[%emt 0:00:01]} Ng5+ {[%emt 0:00:41]} 74. Kf2 {[%emt 0:00:03]} Nf7 {[%emt 0:00:24]} 75. Kf3 {[%emt 0:00:22]} Kg5 {[%emt 0:00:32]} 76. Ng7 {[%emt 0:00:02]} e4+ {[%emt 0:00:31]} 77. Kxe4 {[%emt 0:00:04]} Kxg4 {[%emt 0:00:18]} 78. Ne8 {[%emt 0:00:17]} f3 {[%emt 0:01:02]} 79. Nf6+ {[%emt 0:00:08]} Kg5 {[%emt 0:00:38]} 80. Nh7+ {[%emt 0:00:05]} Kh6 {[%emt 0:00:29]} 81. Nf6 {[%emt 0:00:07]} Kg5 {[%emt 0:00:30]} 82. Nh7+ {[%emt 0:00:06]} Kh6 {[%emt 0:00:29]} 83. Nf6 {[%emt 0:00:02]} Ne5 {[%emt 0:00:31]} 84. Ke3 {[%emt 0:00:17]} Kg5 {[%emt 0:00:31]} 85. Ne4+ {[%emt 0:00:12]} Kg4 {[%emt 0:00:16]} 86. Nxd6 {[%emt 0:00:07]} Kg3 {[%emt 0:00:42]} 87. Ne4+ {[%emt 0:00:08]} Kg2 {[%emt 0:00:30]} 88. Nf2 {[%emt 0:01:26]} Kg3 {[%emt 0:00:31]} 89. d6 {[%emt 0:01:07]} Kg2 {[%emt 0:00:27]} 90. Ne4 {[%emt 0:02:05]} Nd7 {[%emt 0:00:34]} 91. Nf2 {[%emt 0:00:34]} Ne5 {[%emt 0:00:26]} 92. Ne4 {[%emt 0:00:08]} Nd7 {[%emt 0:00:34]} 93. Nf2 {[%emt 0:00:25]} Nf6 {[%emt 0:00:29]} 94. Nd3 {[%emt 0:00:18]} Ng4+ {[%emt 0:00:33]} 95. Kf4 {[%emt 0:00:17]} Nf6 {[%emt 0:00:28]} 96. Ne1+ {[%emt 0:00:25]} Kf2 {[%emt 0:00:11]} 97. Nxf3 {[%emt 0:00:11]} Ke2 {[%emt 0:00:08]} 98. Ne5 {[%emt 0:00:24]} Kd2 {[%emt 0:00:10]} 99. d7 {[%emt 0:00:32]} Nxd7 {[%emt 0:00:27]} 100. Nxd7 {[%emt 0:00:07]} Kc3 {[%emt 0:00:05]} 101. Nxb6 {[%emt 0:00:20]} Kxb3 {[%emt 0:00:06]} 102. Ke5 {[%emt 0:00:09]} 1-0

[Event "AUT 2nd BL Ost 2021-22"]
[Site "Austria"]
[Date "2022.04.03"]
[Round "10.21"]
[White "Pernerstorfer, Johannes"]
[Black "Wagner, Leopold Franziskus"]
[Result "0-1"]
[ECO "A26"]
[WhiteElo "1979"]
[BlackElo "2061"]
[Annotator "NA"]
[PlyCount "86"]
[EventDate "2022.04.01"]
[EventType "team-tourn"]
[EventCountry "AUT"]
[SourceTitle "playchess.com"]
[Source "ChessBase"]
[SourceQuality "1"]
[TimeControl "40/5400+30:1800+30"]

1. c4 {[%emt 0:00:01]} e5 {[%emt 0:00:10]} 2. Nc3 {[%emt 0:00:13]} Nc6 {[%emt 0:00:07]} 3. g3 {[%emt 0:00:13]} g6 {[%emt 0:00:08]} 4. Bg2 {[%emt 0:00:17]} Bg7 {[%emt 0:00:07]} 5. e4 {[%emt 0:00:28]} Nge7 {[%emt 0:01:47]} 6. Nge2 {[%emt 0:01:23]} O-O {[%emt 0:02:43]} 7. O-O {[%emt 0:00:19]} d6 {[%emt 0:01:16]} 8. Rb1 {[%emt 0:01:13]} Be6 {[%emt 0:08:06]} 9. d3 {[%emt 0:00:27]} Qd7 {[%emt 0:01:24]} 10. Nd5 {[%emt 0:01:39]} Nd4 {[%emt 0:06:30]} 11. Nxd4 {[%emt 0:02:01]} exd4 {[%emt 0:00:02]} 12. Nf4 {[%emt 0:06:47]} Rab8 {[%emt 0:02:03]} 13. Nxe6 {[%emt 0:02:16]} fxe6 {[%emt 0:02:36]} 14. Bh3 {[%emt 0:03:21]} Nc6 {[%emt 0:05:15]} 15. b4 {[%emt 0:01:01]} b5 {[%emt 0:03:52]} 16. cxb5 {[%emt 0:06:26]} Rxb5 {[%emt 0:00:13]} 17. a4 {[%emt 0:01:27]} Rbb8 {[%emt 0:01:31]} 18. b5 {[%emt 0:00:44]} Ne5 {[%emt 0:05:07]} 19. f4 {[%emt 0:00:13]} Nf7 {[%emt 0:00:01]} 20. Qb3 {[%emt 0:02:47]} Rfe8 {[%emt 0:03:02]} 21. Bd2 {[%emt 0:00:29]} Qe7 {[%emt 0:10:13]} 22. Rfc1 {[%emt 0:00:32]} c5 {[%emt 0:01:16]} 23. Qc4 {[%emt 0:03:31]} Bh6 {[%emt 0:01:55]} 24. Rf1 {[%emt 0:01:07]} d5 {[%emt 0:07:54]} 25. exd5 {[%emt 0:02:24]} exd5 {[%emt 0:00:21]} 26. Qc2 {[%emt 0:04:48]} c4 {[%emt 0:03:37]} 27. Rbe1 {[%emt 0:02:32]} Qa3 {[%emt 0:04:58]} 28. dxc4 {[%emt 0:05:07]} Qc5 {[%emt 0:00:31]} 29. Kh1 {[%emt 0:05:02]} dxc4 {[%emt 0:01:34]} 30. f5 {[%emt 0:03:00]} d3 {[%emt 0:15:33]} 31. fxg6 {[%emt 0:06:42]} hxg6 {[%emt 0:02:01]} 32. Qb2 {[%emt 0:04:13]} Re2 {[%emt 0:04:53]} 33. Rxe2 {[%emt 0:07:48]} dxe2 {[%emt 0:00:14]} 34. Rxf7 {[%emt 0:04:57]} Qd5+ {[%emt 0:00:32]} 35. Bg2 {[%emt 0:00:20]} Qxf7 {[%emt 0:00:11]} 36. h4 {[%emt 0:02:47]} Bxd2 {[%emt 0:00:42]} 37. Qxd2 {[%emt 0:00:39]} Re8 {[%emt 0:00:23]} 38. Qe1 {[%emt 0:01:03]} c3 {[%emt 0:00:42]} 39. h5 {[%emt 0:01:30]} c2 {[%emt 0:00:43]} 40. hxg6 {[%emt 0:00:30]} Qd7 {[%emt 0:00:14]} 41. Kh2 {[%emt 0:31:02]} Qd4 {[%emt 0:31:01]} 42. g7 {[%emt 0:04:30]} Kxg7 {[%emt 0:00:49]} 43. Qc1 {[%emt 0:00:40]} Rh8+ {[%emt 0:00:07]} 0-1

[Event "AUT 2nd BL Ost 2021-22"]
[Site "Austria"]
[Date "2022.04.03"]
[Round "10.23"]
[White "Hottenroth, Jonas"]
[Black "Castaneda Estrada, Jefferson Smith"]
[Result "1/2-1/2"]
[ECO "C06"]
[WhiteElo "1936"]
[BlackElo "1373"]
[Annotator "NA"]
[PlyCount "60"]
[EventDate "2022.04.01"]
[EventType "team-tourn"]
[EventCountry "AUT"]
[SourceTitle "playchess.com"]
[Source "ChessBase"]
[SourceQuality "1"]
[TimeControl "40/5400+30:1800+30"]

1. e4 {[%emt 0:00:11]} e6 {[%emt 0:00:17]} 2. d4 {[%emt 0:01:04]} d5 {[%emt 0:00:12]} 3. Nd2 {[%emt 0:00:02]} Nf6 {[%emt 0:00:25]} 4. e5 {[%emt 0:00:09]} Nfd7 {[%emt 0:00:09]} 5. Bd3 {[%emt 0:00:23]} c5 {[%emt 0:00:20]} 6. c3 {[%emt 0:00:08]} Nc6 {[%emt 0:00:20]} 7. Ne2 {[%emt 0:00:31]} cxd4 {[%emt 0:00:35]} 8. cxd4 {[%emt 0:00:03]} f6 {[%emt 0:00:45]} 9. exf6 {[%emt 0:12:43]} Nxf6 {[%emt 0:00:18]} 10. Nf3 {[%emt 0:01:01]} Bd6 {[%emt 0:00:27]} 11. Bf4 {[%emt 0:04:53]} Bxf4 {[%emt 0:01:39]} 12. Nxf4 {[%emt 0:00:02]} Qa5+ {[%emt 0:00:15]} 13. Qd2 {[%emt 0:08:39]} Qxd2+ {[%emt 0:00:32]} 14. Kxd2 {[%emt 0:00:03]} O-O {[%emt 0:00:53]} 15. Ne2 {[%emt 0:11:28]} Ne4+ {[%emt 0:20:39]} 16. Ke3 {[%emt 0:08:21]} Nd6 {[%emt 0:13:36]} 17. Rac1 {[%emt 0:13:03]} Bd7 {[%emt 0:04:04]} 18. Ng3 {[%emt 0:06:42]} Rac8 {[%emt 0:05:44]} 19. b3 {[%emt 0:03:34]} Nf7 {[%emt 0:08:16]} 20. Rhe1 {[%emt 0:09:29]} e5 {[%emt 0:11:13]} 21. Nxe5 {[%emt 0:01:07]} Nfxe5 {[%emt 0:01:19]} 22. dxe5 {[%emt 0:00:09]} Nxe5 {[%emt 0:00:21]} 23. f3 {[%emt 0:00:13]} Nc6 {[%emt 0:09:53]} 24. Kd2 {[%emt 0:01:54]} a6 {[%emt 0:05:29]} 25. Ne2 {[%emt 0:07:00]} Bf5 {[%emt 0:02:55]} 26. Bxf5 {[%emt 0:00:56]} Rxf5 {[%emt 0:00:07]} 27. Nd4 {[%emt 0:02:41]} Rf6 {[%emt 0:06:21]} 28. Rc5 {[%emt 0:02:58]} Rd8 {[%emt 0:03:31]} 29. Nxc6 {[%emt 0:00:37]} bxc6 {[%emt 0:00:23]} 30. Rec1 {[%emt 0:01:14]} Rh6 {[%emt 0:00:28]} 1/2-1/2